fUST/lending_fUST_20250816
["ID","MTS","AMOUNT","RATE_DAILY","PERIOD"]
[379462412,1755289838272,-500.0,0.0001851,2]
[379462413,1755289838282,-257.4915,0.0001851,2]
[379462414,1755289838291,-500.0,0.0001851,2]
[379462415,1755289838301,-500.0,0.0001851,2]
[379462416,1755289838310,-500.0,0.0001851,2]
[379462417,1755289838320,-651.20822346,0.0001851,2]
[379462418,1755289838330,-200.0,0.00018512,2]
[379462419,1755289838339,-200.0,0.00018512,2]
[379462420,1755289838349,-200.0,0.00018512,2]
[379462421,1755289838360,-200.0,0.00018512,2]
[379462422,1755289838369,-200.0,0.00018512,2]
[379462423,1755289838379,-200.0,0.00018512,2]
[379462424,1755289838388,-28084.8537935,0.00018512,2]
[379462425,1755289838398,-251.7397242,0.00018546,2]
[379462426,1755289838407,-1376.43444326,0.00019327,2]
[379462427,1755289838416,-413.46,0.00019418,3]
[379462428,1755289838426,-206.73,0.00019418,3]
[379462429,1755289838435,-620.22,0.00019418,3]
[379462430,1755289838444,-2052.53556225,0.00019419,2]
[379462431,1755289838454,-500.0,0.00019427,2]
[379462432,1755289838464,-188.46467159,0.00019427,2]
[379462433,1755289838474,-500.0,0.00019427,2]
[379462434,1755289838485,-500.0,0.00019427,2]
[379462435,1755289838495,-525.67406542,0.00019427,2]
[379462436,1755289838504,-500.0,0.00019427,2]
[379462437,1755289838514,-500.0,0.00019427,2]
[379462438,1755289838524,-500.0,0.00019427,2]
[379462439,1755289838534,-500.0,0.00019427,2]
[379462440,1755289838543,-500.0,0.00019427,2]
[379462441,1755289838553,-500.0,0.00019427,2]
[379462442,1755289838562,-500.0,0.00019427,2]
[379462443,1755289838573,-500.0,0.00019427,2]
[379462444,1755289838582,-500.0,0.00019427,2]
[379462445,1755289838591,-500.0,0.00019427,2]
[379462446,1755289838601,-500.0,0.00019427,2]
[379462447,1755289838610,-500.0,0.00019427,2]
[379462448,1755289838620,-500.0,0.00019427,2]
[379462449,1755289838633,-500.0,0.00019427,2]
[379462450,1755289838644,-500.0,0.00019427,2]
[379462451,1755289838660,-500.0,0.00019427,2]
[379462452,1755289838669,-500.0,0.00019427,2]
[379462453,1755289838679,-500.0,0.00019427,2]
[379462454,1755289838688,-500.0,0.00019427,2]
[379462455,1755289838698,-301.14277866,0.00019427,2]
[379462456,1755289838707,-500.0,0.00019427,2]
[379462457,1755289838716,-527.1963635,0.00019427,2]
[379462458,1755289838726,-527.1963635,0.00019427,2]
[379462459,1755289838740,-527.1963635,0.00019427,2]
[379462460,1755289838750,-527.1963635,0.00019427,2]
[379462461,1755289838759,-527.1963635,0.00019427,2]
[379462462,1755289838769,-527.1963635,0.00019427,2]
[379462463,1755289838780,-527.1963635,0.00019427,2]
[379462464,1755289838789,-500.0,0.00019427,2]
[379462465,1755289838799,-370000.0,0.00019428,2]
[379462466,1755289838809,-151.0,0.00019428,2]
[379462467,1755289838818,-151.0,0.00019428,2]
[379462468,1755289838829,-151.0,0.00019428,2]
[379462469,1755289838838,-500.0,0.00019428,2]
[379462470,1755289838848,-151.0,0.00019428,2]
[379462471,1755289838858,-151.0,0.00019428,2]
[379462472,1755289838868,-151.0,0.00019428,2]
[379462473,1755289838878,-151.0,0.00019428,2]
[379462474,1755289838887,-151.0,0.00019428,2]
[379462475,1755289838898,-500.0,0.00019428,2]
[379462476,1755289838907,-151.0,0.00019428,2]
[379462477,1755289838915,-151.22279765,0.00019428,2]
[379462478,1755289838924,-151.0,0.00019428,2]
[379462479,1755289838933,-151.0,0.00019428,2]
[379462480,1755289838942,-151.0,0.00019428,2]
[379462481,1755289838952,-269.4039774,0.00019428,2]
[379462482,1755289838960,-151.0,0.00019428,2]
[379462483,1755289838968,-151.0,0.00019428,2]
[379462484,1755289838978,-151.0,0.00019428,2]
[379462485,1755289838987,-151.0,0.00019428,2]
[379462486,1755289838997,-500.0,0.00019428,2]
[379462487,1755289839007,-151.0,0.00019428,2]
[379462488,1755289839017,-1376.43444322,0.0001947,2]
[379462489,1755289839027,-531.31961904,0.00019473,2]
[379462490,1755289839037,-365.60859336,0.00019473,2]
[379462491,1755289839046,-500.0,0.00019473,2]
[379462492,1755289839056,-500.0,0.00019473,2]
[379462493,1755289839065,-500.0,0.00019473,2]
[379462494,1755289839074,-500.0,0.00019473,2]
[379462495,1755289839083,-500.0,0.00019473,2]
[379462496,1755289839092,-500.0,0.00019473,2]
[379462497,1755289839101,-509.4840268,0.00019473,2]
[379462498,1755289839111,-500.0,0.00019473,2]
[379462499,1755289839120,-207.45011972,0.00019473,2]
[379462500,1755289839129,-500.0,0.00019473,2]
[379462501,1755289839139,-503.90787643,0.00019473,2]
[379462502,1755289839148,-500.0,0.00019473,2]
[379462503,1755289839157,-500.0,0.00019473,2]
[379462504,1755289839166,-211.57959969,0.00019473,2]
[379462505,1755289839175,-500.0,0.00019473,2]
[379462506,1755289839185,-500.0,0.00019473,2]
[379462507,1755289839194,-500.0,0.00019473,2]
[379462508,1755289839204,-500.0,0.00019473,2]
[379462509,1755289839213,-500.0,0.00019473,2]
[379462510,1755289839223,-500.0,0.00019473,2]
[379462511,1755289839233,-500.0,0.00019473,2]
[379462512,1755289839241,-500.0,0.00019473,2]
[379462513,1755289839249,-500.0,0.00019473,2]
[379462514,1755289839258,-1019.75845652,0.00019527,2]
[379462515,1755289839267,-1376.43444322,0.00019614,2]
[379462516,1755289839277,-500.0,0.00019701,2]
[379462517,1755289839286,-151.0,0.00019702,2]
[379462518,1755289839296,-151.0,0.00019702,2]
[379462519,1755289839307,-151.0,0.00019702,2]
[379462520,1755289839317,-500.0,0.00019702,2]
[379462521,1755289839327,-151.0,0.00019702,2]
[379462522,1755289839337,-235.23179678,0.00019702,2]
[379462523,1755289839347,-151.0,0.00019702,2]
[379462524,1755289839356,-151.0,0.00019702,2]
[379462525,1755289839366,-500.0,0.00019702,2]
[379462526,1755289839376,-151.0,0.00019702,2]
[379462527,1755289839385,-151.0,0.00019702,2]
[379462528,1755289839394,-151.2655407,0.00019702,2]
[379462529,1755289839404,-151.0,0.00019702,2]
[379462530,1755289839413,-151.0,0.00019702,2]
[379462531,1755289839424,-500.0,0.00019702,2]
[379462532,1755289839433,-151.0,0.00019702,2]
[379462533,1755289839444,-1376.43444322,0.00019757,2]
[379462534,1755289839454,-669.0,0.000198,2]
[379462535,1755289839463,-213.542944,0.00019863,2]
[379462536,1755289839473,-1680.0,0.00019897,2]
[379462537,1755289839483,-13570.55731149,0.000199,2]
[379462538,1755289839494,-1376.43444322,0.000199,2]
[379462539,1755289839504,-500.0,0.00019973,2]
[379462540,1755289839513,-500.0,0.00019973,2]
[379462541,1755289839523,-500.0,0.00019973,2]
[379462542,1755289839533,-500.0,0.00019973,2]
[379462543,1755289839543,-509.5504893,0.00019973,2]
[379462544,1755289839655,-500.0,0.00019975,2]
[379462545,1755289839666,-604.0,0.00019976,2]
[379462546,1755289839675,-266.38691077,0.00019976,2]
[379462547,1755289839685,-151.0,0.00019976,2]
[379462548,1755289839694,-151.0,0.00019976,2]
[379462549,1755289839705,-151.0,0.00019976,2]
[379462550,1755289839715,-151.0,0.00019976,2]
[379462551,1755289839725,-151.0,0.00019976,2]
[379462552,1755289839737,-151.0,0.00019976,2]
[379462554,1755289839747,-500.0,0.00019976,2]
[379462555,1755289839757,-6012.09217547,0.0002,2]
[379462556,1755289839767,-19615.26985351,0.0002,2]
[379462557,1755289839778,-68306.76676763,0.0002,2]
[379462558,1755289839787,-28049.81247613,0.0002,2]
[379462559,1755289839798,-4000.0,0.0002,4]
[379462561,1755289839807,-1000.0,0.00020021,2]
[379462562,1755289839818,-834.68504628,0.00020021,2]
[379462563,1755289839828,-1000.0,0.00020021,2]
[379462564,1755289839838,-233.23989062,0.00020021,2]
[379462565,1755289839848,-1000.0,0.00020021,2]
[379462566,1755289839858,-500.0,0.00020021,2]
[379462567,1755289839867,-1000.0,0.00020021,2]
[379462568,1755289839877,-185.94231455,0.00020021,2]
[379462569,1755289839886,-1000.0,0.00020021,2]
[379462570,1755289839896,-1000.0,0.00020021,2]
[379462571,1755289839906,-1000.0,0.00020021,2]
[379462573,1755289839915,-500.0,0.00020021,2]
[379462574,1755289839924,-1000.0,0.00020021,2]
[379462575,1755289839934,-341.0,0.00020103,2]
[379462576,1755289839943,-160.0,0.00020206,2]
[379462577,1755289839954,-500.0,0.00020249,2]
[379462578,1755289839964,-245.0,0.0002025,2]
[379462579,1755289839974,-176.27212249,0.0002025,2]
[379462580,1755289839984,-151.0,0.0002025,2]
[379462581,1755289839993,-151.0,0.0002025,2]
[379462582,1755289840003,-200.0,0.00020332,20]
[379462583,1755289840013,-200.0,0.00020332,20]
[379462585,1755289840023,-200.0,0.00020332,20]
[379462586,1755289840032,-200.0,0.00020332,20]
[379462587,1755289840042,-200.0,0.00020332,20]
[379462589,1755289840051,-200.0,0.00020332,20]
[379462590,1755289840060,-200.0,0.00020332,20]
[379462591,1755289840070,-280.0,0.00020332,20]
[379462592,1755289840079,-13570.55731142,0.00020416,2]
[379462593,1755289840089,-1000.0,0.00020521,2]
[379462594,1755289840099,-915.14785593,0.00020521,2]
[379462595,1755289840108,-1000.0,0.00020521,2]
[379462596,1755289840117,-500.0,0.00020523,2]
[379462597,1755289840126,-151.0,0.00020524,2]
[379462598,1755289840137,-1500.0,0.00020568,2]
[379462599,1755289840149,-422.21794459,0.00020568,2]
[379462600,1755289840159,-466.04331015,0.00020568,2]
[379462601,1755289840168,-748.52026501,0.00020568,2]
[379462602,1755289840177,-692.9908034,0.00020568,2]
[379462603,1755289840187,-1500.0,0.00020568,2]
[379462604,1755289840196,-954.37228408,0.00020568,2]
[379462605,1755289840207,-1500.0,0.00020568,2]
[379462607,1755289840216,-260.0,0.00020754,2]
[379462608,1755289840225,-826.92,0.00020788,3]
[379462610,1755289840235,-413.46,0.00020788,3]
[379462611,1755289840244,-500.0,0.00020797,2]
[379462612,1755289840253,-245.0,0.00020798,2]
[379462613,1755289840262,-500.0,0.00020915,2]
[379462614,1755289840271,-13570.55731142,0.00020932,2]
[379462615,1755289840281,-179.78425889,0.0002096,2]
[379462616,1755289840291,-151.0,0.00021,3]
[379462617,1755289840300,-323.25617999,0.00021,2]
[379462618,1755289840309,-1104.28536077,0.00021068,2]
[379462619,1755289840318,-1237.56320412,0.00021068,2]
[379462620,1755289840328,-500.0,0.00021071,2]
[379462621,1755289840336,-2000.0,0.00021116,2]
[379462622,1755289840346,-360.0,0.00021302,2]
[379462623,1755289840355,-500.0,0.00021345,2]
[379462624,1755289840365,-462.0440047,0.00021447,2]
[379462625,1755289840374,-13570.55731142,0.00021448,2]
[379462627,1755289840383,-528.28344625,0.0002145,2]
[379462628,1755289840393,-160.0,0.0002145,2]
[379462629,1755289840403,-160.0,0.0002145,2]
[379462630,1755289840412,-160.0,0.0002145,2]
[379462631,1755289840421,-160.0,0.0002145,2]
[379462632,1755289840430,-215.63758983,0.0002145,2]
[379462633,1755289840439,-160.0,0.0002145,2]
[379462634,1755289840449,-216.77912109,0.0002145,2]
[379462635,1755289840458,-160.0,0.0002145,2]
[379462636,1755289840468,-843.47195277,0.0002145,2]
[379462637,1755289840477,-160.0,0.0002145,2]
[379462638,1755289840486,-160.0,0.0002145,2]
[379462639,1755289840496,-232.08354597,0.0002145,2]
[379462640,1755289840506,-417.15472785,0.0002145,2]
[379462641,1755289840516,-151.0,0.000216,4]
[379462642,1755289840526,-500.0,0.00021619,2]
[379462643,1755289840535,-2392.51075649,0.00021664,2]
[379462644,1755289840544,-1653.0,0.00021813,2]
[379462645,1755289840553,-460.0,0.0002185,2]
[379462646,1755289840563,-500.0,0.00021893,2]
[379462647,1755289840572,-200.0,0.00021918,2]
[379462648,1755289840581,-13570.55731142,0.00021965,2]
[379462649,1755289840590,-500.88930733,0.00021973,2]
[379462650,1755289840599,-611.02292778,0.00021973,2]
[379462651,1755289840609,-500.0,0.00021973,2]
[379462652,1755289840618,-1286.92921959,0.00021998,2]
[379462653,1755289840628,-15342.34,0.00022,7]
[379462654,1755289840637,-169.0,0.00022,2]
[379462655,1755289840647,-5153.85,0.00022,7]
[379462656,1755289840657,-22966.19,0.00022,2]
[379462657,1755289840667,-167.62725321,0.00022,10]
[379462658,1755289840677,-160.0,0.00022,7]
[379462659,1755289840686,-500.0,0.00022,2]
[379462660,1755289840696,-500.0,0.00022,2]
[379462661,1755289840709,-500.0,0.00022,2]
[379462662,1755289840719,-500.0,0.00022,2]
[379462663,1755289840729,-500.0,0.00022,2]
[379462664,1755289840741,-500.78890042,0.00022,2]
[379462665,1755289840751,-500.0,0.00022,2]
[379462666,1755289840760,-500.0,0.00022,2]
[379462667,1755289840769,-500.0,0.00022,2]
[379462668,1755289840779,-500.0,0.00022015,2]
[379462669,1755289840788,-500.0,0.00022015,2]
[379462670,1755289840797,-157.0,0.00022027,6]
[379462671,1755289840808,-326.04,0.00022048,2]
[379462672,1755289840817,-151.0,0.000221,9]
[379462673,1755289840826,-1500.0,0.00022108,2]
[379462674,1755289840835,-178.13626422,0.0002211,2]
[379462675,1755289840844,-255.0,0.0002211,2]
[379462676,1755289840853,-160.65128319,0.0002211,2]
[379462677,1755289840863,-500.0,0.00022167,2]
[379462678,1755289840872,-200.0,0.00022329,20]
[379462679,1755289840881,-200.0,0.00022329,20]
[379462680,1755289840890,-200.0,0.00022329,20]
[379462681,1755289840899,-200.0,0.00022329,20]
[379462682,1755289840909,-200.0,0.00022329,20]
[379462683,1755289840919,-200.0,0.00022329,20]
[379462684,1755289840928,-200.0,0.00022329,20]
[379462685,1755289840937,-200.0,0.00022329,20]
[379462686,1755289840946,-200.0,0.00022329,20]
[379462687,1755289840958,-200.0,0.00022329,20]
[379462688,1755289840967,-350.0,0.00022329,20]
[379462689,1755289840976,-560.0,0.00022398,2]
[379462690,1755289840985,-500.0,0.00022441,2]
[379462691,1755289840994,-13570.55731142,0.00022481,2]
[379462692,1755289841005,-1001.94900279,0.00022521,2]
[379462693,1755289841015,-1000.0,0.00022548,2]
[379462694,1755289841025,-1000.0,0.00022548,2]
[379462695,1755289841034,-1094.04779608,0.00022548,2]
[379462696,1755289841043,-501.74183705,0.00022548,2]
[379462697,1755289841052,-1000.0,0.00022548,2]
[379462698,1755289841061,-1000.0,0.00022548,2]
[379462699,1755289841071,-200.0,0.00022603,2]
[379462700,1755289841080,-501.667,0.00022645,2]
[379462701,1755289841089,-151.0,0.000227,10]
[379462702,1755289841098,-500.0,0.00022715,2]
[379462703,1755289841107,-3900.0,0.0002278,2]
[379462704,1755289841116,-660.0,0.00022946,2]
[379462705,1755289841125,-500.0,0.00022989,2]
[379462706,1755289841134,-13570.55731142,0.00022997,2]
[379462707,1755289841143,-2000.71031757,0.00023,2]
[379462708,1755289841152,-5061.74435076,0.00023,2]
[379462709,1755289841161,-1341.35794119,0.00023,2]
[379462710,1755289841171,-160.0,0.00023,2]
[379462711,1755289841180,-1500.0,0.00023096,2]
[379462712,1755289841190,-1500.0,0.00023096,2]
[379462713,1755289841199,-1500.0,0.00023096,2]
[379462714,1755289841210,-1500.0,0.00023096,2]
[379462715,1755289841219,-500.0,0.00023116,2]
[379462716,1755289841229,-151.0,0.000232,7]
[379462717,1755289841238,-1500.0,0.00023204,2]
[379462718,1755289841247,-500.0,0.00023263,2]
[379462719,1755289841256,-213.542944,0.00023288,2]
[379462720,1755289841266,-500.0,0.000234,2]
[379462721,1755289841275,-500.0,0.000234,2]
[379462722,1755289841284,-500.0,0.000234,2]
[379462723,1755289841293,-500.0,0.000234,2]
[379462724,1755289841302,-500.0,0.000234,2]
[379462725,1755289841312,-760.0,0.00023494,2]
[379462726,1755289841321,-42001.81476363,0.000235,14]
[379462727,1755289841330,-1000.0,0.000235,2]
[379462728,1755289841339,-452.59136052,0.000235,2]
[379462729,1755289841348,-500.0,0.000235,2]
[379462730,1755289841357,-500.0,0.000235,2]
[379462731,1755289841368,-150.0,0.000235,2]
[379462732,1755289841378,-645.34216857,0.000235,2]
[379462733,1755289841387,-13570.55731142,0.00023513,2]
[379462734,1755289841396,-270.9592743,0.00023537,2]
[379462735,1755289841502,-5153.85,0.000236,7]
[379462736,1755289841512,-2000.0,0.00023644,2]
[379462737,1755289841522,-1218.2584306,0.00023644,2]
[379462738,1755289841531,-2000.0,0.00023644,2]
[379462739,1755289841540,-2000.0,0.00023644,2]
[379462740,1755289841550,-151.0,0.000237,10]
[379462741,1755289841559,-1775.94753238,0.00023731,2]
[379462742,1755289841569,-1775.94753238,0.00023767,2]
[379462743,1755289841579,-177.59475323,0.00023772,2]
[379462744,1755289841589,-177.59475323,0.00023787,2]
[379462745,1755289841598,-174.53,0.000238,7]
[379462746,1755289841607,-15342.34,0.000238,7]
[379462747,1755289841616,-22966.19,0.000238,2]
[379462748,1755289841626,-972.0,0.00023834,2]
[379462749,1755289841635,-636.0,0.00023834,2]
[379462750,1755289841644,-2152.0,0.00023834,2]
[379462751,1755289841654,-408.0,0.00023834,2]
[379462752,1755289841663,-500.0,0.00023875,2]
[379462753,1755289841671,-1017.79937379,0.00023875,2]
[379462754,1755289841681,-150.0,0.00023875,2]
[379462755,1755289841691,-500.0,0.00023948,2]
[379462756,1755289841701,-1000.0,0.00023948,2]
[379462757,1755289841710,-1000.0,0.00023948,2]
[379462758,1755289841719,-1000.0,0.00023948,2]
[379462759,1755289841730,-216.77912109,0.00024,7]
[379462760,1755289841742,-843.47195277,0.00024,7]
[379462761,1755289841751,-160.0,0.00024,7]
[379462762,1755289841760,-528.28344625,0.00024,7]
[379462763,1755289841769,-417.15472785,0.00024,7]
[379462764,1755289841778,-160.0,0.00024,7]
[379462765,1755289841787,-1700.93253725,0.00024,2]
[379462766,1755289841796,-232.08354597,0.00024,7]
[379462767,1755289841806,-151.0,0.00024015,2]
[379462768,1755289841816,-151.0,0.00024015,2]
[379462769,1755289841826,-151.0,0.00024015,2]
[379462770,1755289841835,-151.0,0.00024015,2]
[379462771,1755289841845,-151.0,0.00024015,2]
[379462772,1755289841855,-151.0,0.00024015,2]
[379462773,1755289841863,-151.0,0.00024015,2]
[379462774,1755289841872,-151.0,0.00024015,2]
[379462775,1755289841882,-151.0,0.00024015,2]
[379462776,1755289841891,-500.0,0.00024015,2]
[379462777,1755289841901,-151.0,0.00024015,2]
[379462778,1755289841910,-500.0,0.00024015,2]
[379462779,1755289841919,-151.0,0.00024015,2]
[379462780,1755289841929,-500.0,0.00024015,2]
[379462781,1755289841938,-151.0,0.00024015,2]
[379462782,1755289841948,-500.0,0.00024015,2]
[379462783,1755289841958,-151.0,0.00024015,2]
[379462784,1755289841967,-500.0,0.00024015,2]
[379462785,1755289841976,-2183.31810187,0.00024015,2]
[379462786,1755289841985,-151.0,0.00024015,2]
[379462787,1755289841994,-500.0,0.00024015,2]
[379462788,1755289842003,-151.0,0.00024015,2]
[379462789,1755289842012,-500.0,0.00024015,2]
[379462790,1755289842021,-151.0,0.00024015,2]
[379462791,1755289842031,-151.0,0.00024015,2]
[379462792,1755289842040,-151.0,0.00024015,2]
[379462793,1755289842050,-500.0,0.00024015,2]
[379462794,1755289842059,-151.0,0.00024015,2]
[379462795,1755289842068,-151.0,0.00024015,2]
[379462796,1755289842077,-500.0,0.00024015,2]
[379462797,1755289842086,-151.0,0.00024015,2]
[379462798,1755289842095,-230.72414637,0.00024015,2]
[379462799,1755289842104,-17842.522448,0.00024015,2]
[379462800,1755289842113,-500.0,0.00024015,2]
[379462801,1755289842122,-151.0,0.00024015,2]
[379462802,1755289842131,-500.0,0.00024015,2]
[379462803,1755289842141,-151.0,0.00024015,2]
[379462804,1755289842150,-500.0,0.00024015,2]
[379462805,1755289842159,-151.0,0.00024015,2]
[379462806,1755289842168,-500.0,0.00024015,2]
[379462807,1755289842177,-500.0,0.00024015,2]
[379462808,1755289842188,-500.0,0.00024015,2]
[379462809,1755289842197,-500.0,0.00024015,2]
[379462810,1755289842208,-500.0,0.00024015,2]
[379462811,1755289842217,-300.0,0.00024015,2]
[379462812,1755289842226,-151.0,0.00024015,2]
[379462813,1755289842235,-300.0,0.00024015,2]
[379462814,1755289842244,-151.0,0.00024015,2]
[379462815,1755289842253,-300.0,0.00024015,2]
[379462816,1755289842262,-151.0,0.00024015,2]
[379462817,1755289842271,-151.0,0.00024015,2]
[379462818,1755289842280,-151.0,0.00024015,2]
[379462819,1755289842289,-151.0,0.00024015,2]
[379462820,1755289842298,-151.0,0.00024015,2]
[379462821,1755289842307,-151.0,0.00024015,2]
[379462822,1755289842316,-151.0,0.00024015,2]
[379462823,1755289842325,-151.0,0.00024015,2]
[379462824,1755289842334,-156.04189223,0.00024015,2]
[379462825,1755289842343,-13570.55731142,0.00024029,2]
[379462826,1755289842352,-860.0,0.00024041,2]
[379462827,1755289842362,-501.46149829,0.00024048,2]
[379462828,1755289842370,-250.0,0.00024048,2]
[379462829,1755289842379,-1000.0,0.00024048,2]
[379462830,1755289842389,-652.08,0.00024052,2]
[379462831,1755289842398,-2264.10087164,0.0002407,2]
[379462832,1755289842407,-2347.87260389,0.00024125,2]
[379462833,1755289842417,-2434.74389023,0.0002418,2]
[379462834,1755289842426,-497.15365796,0.00024192,2]
[379462835,1755289842435,-2500.0,0.00024192,2]
[379462836,1755289842443,-2500.0,0.00024192,2]
[379462837,1755289842454,-500.0,0.00024272,2]
[379462838,1755289842462,-1500.0,0.000243,2]
[379462839,1755289842472,-151.0,0.000243,9]
[379462840,1755289842481,-151.0,0.000244,6]
[379462841,1755289842490,-250.0,0.00024423,2]
[379462842,1755289842499,-151.0,0.00024433,5]
[379462843,1755289842509,-1500.0,0.00024496,2]
[379462844,1755289842518,-1500.0,0.00024496,2]
[379462845,1755289842526,-659.82930762,0.000245,2]
[379462846,1755289842535,-200.0,0.00024523,20]
[379462847,1755289842543,-200.0,0.00024523,20]
[379462848,1755289842552,-200.0,0.00024523,20]
[379462849,1755289842561,-200.0,0.00024523,20]
[379462850,1755289842570,-200.0,0.00024523,20]
[379462851,1755289842579,-200.0,0.00024523,20]
[379462852,1755289842588,-200.0,0.00024523,20]
[379462853,1755289842597,-200.0,0.00024523,20]
[379462855,1755289842606,-200.0,0.00024523,20]
[379462857,1755289842615,-200.0,0.00024523,20]
[379462858,1755289842625,-200.0,0.00024523,20]
[379462859,1755289842634,-200.0,0.00024523,20]
[379462860,1755289842644,-200.0,0.00024523,20]
[379462861,1755289842653,-200.0,0.00024523,20]
[379462862,1755289842663,-200.0,0.00024523,20]
[379462863,1755289842672,-292.0,0.00024523,20]
[379462864,1755289842681,-13570.55731142,0.00024545,2]
[379462866,1755289842691,-960.0,0.00024589,2]
[379462867,1755289842701,-344.19312399,0.00024596,2]
[379462868,1755289842711,-350.0,0.00024596,2]
[379462870,1755289842719,-504.35327477,0.0002465,2]
[379462872,1755289842729,-731.93,0.00024657,60]
[379462874,1755289842742,-731.93,0.00024657,60]
[379462876,1755289842751,-731.93,0.00024657,60]
[379462878,1755289842761,-731.93,0.00024657,60]
[379462880,1755289842770,-731.93,0.00024657,60]
[379462882,1755289842780,-731.93,0.00024657,60]
[379462884,1755289842789,-731.93,0.00024657,60]
[379462885,1755289842799,-731.93,0.00024657,60]
[379462886,1755289842810,-731.93,0.00024657,60]
[379462887,1755289842819,-731.93,0.00024657,60]
[379462888,1755289842829,-731.93,0.00024657,60]
[379462889,1755289842838,-731.93,0.00024657,60]
[379462890,1755289842847,-731.93,0.00024657,60]
[379462891,1755289842856,-731.93,0.00024657,60]
[379462892,1755289842865,-731.93,0.00024657,60]
[379462893,1755289842875,-731.93,0.00024657,60]
[379462894,1755289842884,-731.93,0.00024657,60]
[379462895,1755289842893,-731.93,0.00024657,60]
[379462896,1755289842902,-731.93,0.00024657,60]
[379462897,1755289842911,-731.93,0.00024657,60]
[379462898,1755289842921,-731.93,0.00024657,60]
[379462899,1755289842930,-731.93,0.00024657,60]
[379462900,1755289842939,-731.93,0.00024657,60]
[379462901,1755289842948,-732.10237807,0.00024657,60]
[379462902,1755289842957,-1263.68,0.00024657,60]
[379462903,1755289842967,-1263.68,0.00024657,60]
[379462904,1755289842976,-1263.68,0.00024657,60]
[379462905,1755289842985,-1263.68,0.00024657,60]
[379462906,1755289842995,-1263.68,0.00024657,60]
[379462907,1755289843004,-1263.68,0.00024657,60]
[379462908,1755289843014,-1263.68,0.00024657,60]
[379462909,1755289843023,-1263.68,0.00024657,60]
[379462910,1755289843032,-1263.68,0.00024657,60]
[379462911,1755289843041,-1263.68,0.00024657,60]
[379462912,1755289843050,-1263.68,0.00024657,60]
[379462913,1755289843059,-1263.68,0.00024657,60]
[379462914,1755289843069,-1263.68,0.00024657,60]
[379462915,1755289843163,-1263.68,0.00024657,60]
[379462916,1755289843172,-1263.68,0.00024657,60]
[379462917,1755289843181,-1263.68,0.00024657,60]
[379462918,1755289843190,-1263.68,0.00024657,60]
[379462920,1755289843200,-1263.68,0.00024657,60]
[379462922,1755289843210,-1263.68,0.00024657,60]
[379462924,1755289843220,-1263.68,0.00024657,60]
[379462925,1755289843229,-1263.68,0.00024657,60]
[379462926,1755289843239,-1263.68,0.00024657,60]
[379462927,1755289843248,-1263.68,0.00024657,60]
[379462928,1755289843257,-1263.71,0.00024657,60]
[379462929,1755289843266,-500.0,0.00024657,60]
[379462930,1755289843275,-506.39407875,0.00024657,60]
[379462931,1755289843284,-579.30904571,0.00024657,60]
[379462932,1755289843294,-500.0,0.00024657,60]
[379462933,1755289843303,-500.0,0.00024657,60]